bitfinex/quotes_ETHUSD_20251017
["timestamp","ask_amount","ask_price","bid_price","bid_amount"]
[1760697704817,0.109,3702.5,3701.5,0.57265621]
[1760697704982,2.70063813,3702.9,3701.5,0.57265621]
[1760697705318,2.70067691,3702.8,3701.5,0.57265621]
[1760697705811,2.70058602,3702.9,3701.5,0.57265621]
[1760697706117,2.70065896,3702.8,3701.5,0.2335]
[1760697706319,2.74772091,3702.9,3701.5,0.2335]
[1760697706614,2.70074206,3702.7,3701.5,0.2335]
[1760697706819,17.16860008,3702.6,3701.2,1.728]
[1760697706984,0.42374219,3702.5,3701.4,2.70162979]
[1760697707187,0.42374219,3702.5,3701.5,1.03831513]
[1760697707713,0.42374219,3702.5,3701.5,0.4527]
[1760697708114,0.42374219,3702.5,3701.1,1.9639]
[1760697708416,0.42374219,3702.5,3701.1,4.66577415]
[1760697708716,0.42374219,3702.5,3701.1,0.2359]
[1760697709020,0.42374219,3702.5,3701.2,1.728]
[1760697709311,0.42374219,3702.5,3701.2,2.00924778]
[1760697709511,0.42374219,3702.5,3701.2,0.28124778]
[1760697709716,0.42374219,3702.5,3701.3,3.15439526]
[1760697709886,0.42374219,3702.5,3701.3,0.4527]
[1760697711206,0.42374219,3702.5,3701.3,3.15444611]
[1760697711519,0.42374219,3702.5,3701.3,3.1544293]
[1760697711820,0.42374219,3702.5,3701.4,0.4599]
[1760697712192,0.42374219,3702.5,3701.6,2.70153447]
[1760697712397,0.42374219,3702.5,3701.7,0.4599]
[1760697713312,0.42374219,3702.5,3702.4,0.2221]
[1760697713611,0.42374219,3702.5,3701.7,3.1613355]
[1760697713813,0.42374219,3702.5,3701.7,0.4599]
[1760697714006,0.42374219,3702.5,3701.7,3.74765791]
[1760697714195,0.42374219,3702.5,3702.4,0.2221]
[1760697714624,18.32297746,3704.8,3702.4,0.682]
[1760697714837,2.69968347,3704.2,3702.5,0.4599]
[1760697715034,18.32017746,3704.3,3702.9,2.70052699]
[1760697715240,0.1101,3704.3,3703.4,2.70020463]
[1760697715538,21.02222449,3704.8,3704.2,0.2221]
[1760697715539,0.1129,3704.8,3704.2,0.2221]
[1760697715712,0.11,3705.1,3704.2,0.2221]
[1760697715900,0.11,3705.1,3704.2,2.9217357]
[1760697716102,18.21207746,3705.7,3704.3,0.46983722]
[1760697716306,18.21207746,3705.7,3704.3,3.15944413]
[1760697716601,1.91633953,3705.6,3704.4,2.69948934]
[1760697716835,18.21207746,3705.7,3704.3,0.4599]
[1760697717150,18.21207746,3705.7,3704.4,2.69947195]
[1760697717304,18.21207746,3705.7,3704.3,3.15944658]
[1760697717931,18.21207746,3705.7,3704.3,0.4599]
[1760697718152,20.91063003,3705.7,3704.3,0.4599]
[1760697718305,18.21207746,3705.7,3704.3,0.4599]
[1760697718733,0.04705971,3705.5,3704.3,0.4599]
[1760697718935,0.04705971,3705.5,3704.3,0.79806345]
[1760697719127,0.04705971,3705.5,3704.3,0.4599]
[1760697719935,2.74575926,3705.5,3704.3,0.4599]
[1760697720134,0.04705971,3705.5,3704.3,0.4599]
[1760697720541,0.01143397,3704.3,3703.8,0.4599]
[1760697720708,0.01143397,3704.3,3703.5,0.2221]
[1760697720908,2.71025068,3704.3,3703.5,0.2221]
[1760697721128,0.01063397,3704.3,3703.0,0.2221]
[1760697721410,0.01063397,3704.3,3702.4,0.2221]
[1760697721411,18.21007746,3703.5,3702.4,0.2221]
[1760697721605,20.91025083,3703.5,3702.4,0.2221]
[1760697721809,0.6336,3703.3,3701.9,0.2221]
[1760697722312,2.70042745,3703.2,3701.9,0.2221]
[1760697722511,2.70059198,3702.9,3701.9,0.2221]
[1760697722743,0.42371235,3702.9,3701.9,0.2221]
[1760697723039,0.42371235,3702.9,3702.0,0.4599]
[1760697723761,0.42371235,3702.9,3702.0,0.33833185]
[1760697723943,0.1103,3702.8,3701.5,0.4576]
[1760697724239,0.15738741,3702.8,3701.5,0.4576]
[1760697724617,0.42372579,3702.5,3701.5,0.4576]
[1760697725007,0.42372579,3702.5,3702.4,0.227]
[1760697725215,0.2232,3703.6,3702.4,0.6846]
[1760697725443,0.2232,3703.6,3702.4,3.38554031]
[1760697725768,0.42364835,3703.4,3702.4,1.29326323]
[1760697726047,0.42364835,3703.4,3702.4,0.227]
[1760697726252,0.42364835,3703.4,3702.1,0.227]
[1760697726253,2.70043307,3703.2,3702.1,0.227]
[1760697726413,3.33395743,3703.3,3702.1,0.227]
[1760697726812,0.42369358,3703.1,3702.1,0.227]
[1760697727831,0.42369358,3703.1,3701.6,1.728]
[1760697728035,0.42369358,3703.1,3701.7,0.1728]
[1760697728242,0.42369358,3703.1,3701.8,2.70137205]
[1760697728621,0.42369358,3703.1,3701.8,3.15897205]
[1760697728928,0.42369358,3703.1,3701.9,2.70125687]
[1760697729458,0.42369358,3703.1,3702.1,1.728]
[1760697729661,0.04708488,3703.2,3703.1,2.70044017]
[1760697729975,0.1125,3704.7,3703.1,1.02040221]
[1760697730168,0.04707383,3704.4,3703.2,3.15795727]
[1760697730378,0.04707383,3704.4,3704.3,0.227]
[1760697730868,2.70055523,3705.7,3704.3,0.6846]
[1760697731167,0.04706623,3705.3,3704.3,0.6846]
[1760697731377,18.25714369,3705.3,3703.7,0.4576]
[1760697731569,18.21007746,3704.8,3703.9,0.227]
[1760697731879,18.25714369,3705.3,3704.0,0.4576]
[1760697732032,2.69891471,3705.2,3704.0,0.4576]
[1760697732242,20.9560427,3705.3,3704.0,0.4576]
[1760697732567,0.04706623,3705.3,3704.0,3.15736136]
[1760697732734,0.04706623,3705.3,3704.3,2.69953167]
[1760697732931,0.04706623,3705.3,3704.1,0.4576]
[1760697733367,18.25714369,3705.3,3704.1,0.4576]
[1760697733946,18.25714369,3705.3,3704.1,3.1572866]
[1760697734150,18.25714369,3705.3,3704.1,1.06601516]
[1760697734344,18.25714369,3705.3,3704.1,3.76572276]
[1760697734670,18.25714369,3705.3,3704.1,1.06601516]
[1760697734848,0.04706623,3705.3,3704.1,0.4576]
[1760697735040,0.04706623,3705.3,3704.2,2.69963824]
[1760697735241,0.04706623,3705.3,3704.3,0.4576]
[1760697735545,0.04706623,3705.3,3705.2,0.227]
[1760697735746,0.04706623,3705.3,3705.2,0.6846]
[1760697735961,0.002,3705.7,3705.2,1.29286816]
[1760697736180,0.002,3705.7,3705.3,3.15637839]
[1760697736360,0.002,3705.7,3705.5,2.69867683]
[1760697736567,0.002,3705.7,3705.2,0.227]
[1760697736568,0.002,3705.7,3705.4,0.4576]
[1760697737533,0.002,3705.7,3705.2,0.227]
[1760697737738,0.002,3705.7,3705.3,0.4576]
[1760697737933,0.002,3705.7,3705.3,3.1564273]
[1760697738138,0.002,3705.7,3705.4,0.4576]
[1760697738633,0.002,3705.7,3705.5,0.4576]
[1760697738834,0.002,3705.7,3705.6,2.6986183]
[1760697739038,0.002,3705.7,3705.6,4.8842183]
[1760697739271,0.002,3705.7,3705.6,2.1856]
[1760697739569,0.002,3705.7,3705.2,0.227]
[1760697740378,0.002,3705.7,3705.3,0.4576]
[1760697740549,0.002,3705.7,3705.3,0.79595777]
[1760697740956,0.002,3705.7,3705.6,2.6986183]
[1760697741459,0.002,3705.7,3705.6,4.8842183]
[1760697744776,0.0012,3705.7,3705.6,4.8842183]
[1760697744973,0.0012,3705.7,3705.6,1.728]
[1760697745244,0.0012,3705.7,3705.2,0.7009]
[1760697745444,0.0012,3705.7,3705.2,3.03879155]
[1760697745657,0.0012,3705.7,3705.2,0.7009]
[1760697745851,0.0012,3705.7,3705.3,0.4739]
[1760697746453,0.0012,3705.7,3705.3,3.17273244]
[1760697746675,0.0012,3705.7,3705.2,0.227]
[1760697746875,0.0012,3705.7,3704.9,0.22]
[1760697747079,0.0012,3705.7,3704.9,0.75139]
[1760697747380,0.0012,3705.7,3704.9,1.948]
[1760697747755,0.0012,3705.7,3705.0,2.69905533]
[1760697748334,0.0012,3705.7,3704.9,2.91910609]
[1760697748454,0.0012,3705.7,3705.0,2.69902833]
[1760697748649,0.0012,3705.7,3705.1,2.69896836]
[1760697748887,0.0012,3705.7,3703.9,0.227]
[1760697749047,0.0012,3705.7,3703.1,3.86]
[1760697749048,18.16049747,3705.1,3703.3,0.4739]
[1760697749254,18.16049747,3704.6,3702.8,0.4739]
[1760697749661,2.91251962,3704.5,3702.8,0.4739]
[1760697749987,0.1141,3704.5,3703.3,2.70023449]
[1760697750286,0.1141,3704.5,3703.3,3.31039196]
[1760697750456,0.1141,3704.5,3703.3,0.61015747]
[1760697750845,0.04707064,3704.8,3703.5,1.728]
[1760697751055,1.728,3705.3,3703.9,2.69979612]
[1760697751286,0.04706439,3705.2,3704.0,0.4739]
[1760697751455,0.0012,3705.7,3704.1,1.948]
[1760697751456,0.4234843,3704.6,3704.1,1.948]
[1760697751651,0.0012,3705.7,3704.4,0.1344]
[1760697752005,0.42342409,3704.6,3704.5,1.728]
[1760697752287,0.0012,3705.7,3704.1,0.22]
[1760697752288,0.114,3704.8,3704.1,1.948]
[1760697752675,0.42341505,3705.5,3704.2,2.69962771]
[1760697752887,0.42341505,3705.5,3704.1,2.91969301]
[1760697753185,0.42341505,3705.5,3704.3,3.17346086]
[1760697753384,0.42341505,3705.5,3704.3,0.4739]
[1760697753591,0.42341505,3705.5,3704.3,3.17345519]
[1760697753762,0.42341505,3705.5,3704.4,0.78211542]
[1760697754289,0.42341505,3705.5,3704.4,2.6994609]
[1760697754489,0.42341505,3705.5,3704.5,2.69935459]
[1760697754654,0.42341505,3705.5,3704.4,0.4739]
[1760697755007,0.42341505,3705.5,3704.4,3.17334086]
[1760697755157,0.42341505,3705.5,3704.4,0.4739]
[1760697755357,0.42341505,3705.5,3704.4,0.98604032]
[1760697755887,0.42341505,3705.5,3704.4,4.90137248]
[1760697756085,0.42341505,3705.5,3704.4,2.2019]
[1760697756381,0.42341505,3705.5,3704.4,0.4739]
[1760697756588,0.42341505,3705.5,3704.1,1.948]
[1760697756754,0.42341505,3705.5,3704.1,0.22]
[1760697756955,18.20755806,3705.3,3703.8,0.4739]
[1760697757155,20.90640248,3705.3,3704.0,1.728]
[1760697757352,0.6336,3705.2,3702.0,18.16149747]
[1760697757595,0.42347434,3705.0,3703.4,0.4739]
[1760697757792,0.1138,3704.9,3703.5,1.728]
[1760697757992,0.42347434,3705.0,3704.0,2.69971179]
[1760697758297,0.42347434,3705.0,3704.3,1.729]
[1760697758499,0.0012,3705.7,3704.9,2.6991053]
[1760697758665,0.0012,3705.7,3705.0,2.69905533]
[1760697758863,0.0012,3705.7,3705.0,0.4739]
[1760697759058,0.0012,3705.7,3705.1,0.22]
[1760697760483,18.16169747,3705.7,3704.5,0.1344]
[1760697760686,2.69869675,3705.5,3704.1,2.91968658]
[1760697760884,18.16169747,3705.7,3704.1,0.22]
[1760697761099,0.42342133,3705.5,3704.4,0.4739]
[1760697761288,0.04705862,3705.6,3704.4,0.4739]
[1760697761484,0.04705862,3705.6,3704.4,0.98615418]
[1760697761795,0.04705862,3705.6,3704.4,2.19949249]
[1760697761964,0.04705862,3705.6,3704.8,2.69918278]
[1760697762161,0.0012,3705.7,3704.7,1.728]
[1760697762360,0.0012,3705.7,3704.6,1.728]
[1760697762588,0.0012,3705.7,3704.6,2.69931972]
[1760697762803,0.0012,3705.7,3704.8,1.728]
[1760697763436,0.0012,3705.7,3704.6,2.69932947]
[1760697763605,0.0012,3705.7,3704.5,3.17329887]
[1760697763795,18.26119747,3705.7,3704.4,1.728]
[1760697764002,0.0012,3705.7,3704.6,1.728]
[1760697764202,0.0012,3705.7,3704.7,3.17315175]
[1760697764400,0.42338727,3705.5,3704.7,0.4739]
[1760697764727,0.42338727,3705.5,3705.4,4.64676396]
[1760697764930,0.42338727,3705.5,3705.4,5.12066396]
[1760697765098,0.0012,3705.7,3705.6,2.6986183]
[1760697765300,0.0012,3705.7,3705.6,4.4266183]
[1760697765505,0.0012,3705.7,3705.6,5.5341183]
[1760697765796,0.002,3706.5,3706.4,2.69803582]
[1760697766002,0.002,3706.5,3706.4,1.728]
[1760697766203,0.002,3706.5,3706.4,2.2019]
[1760697766400,0.002,3706.5,3705.4,0.37143379]
[1760697766637,0.002,3706.5,3706.0,1.728]
[1760697766936,0.002,3706.5,3706.1,1.728]
[1760697767172,0.002,3706.5,3705.8,0.0967]
[1760697767302,0.4334,3706.4,3705.6,1.728]
[1760697767497,0.4334,3706.4,3705.4,4.52345547]
[1760697767827,0.4334,3706.4,3705.4,0.0967]
[1760697768043,0.002,3706.5,3705.5,2.69869113]
[1760697768198,0.002,3706.5,3705.6,0.01661885]
[1760697768395,0.002,3706.5,3705.8,2.69846383]
[1760697768601,0.002,3706.5,3705.5,0.1344]
[1760697768802,0.0012,3706.5,3705.5,3.30695336]
[1760697769005,0.0012,3706.5,3705.5,3.6473187]
[1760697769238,0.0012,3706.5,3705.7,2.69853888]
[1760697769605,0.0012,3706.5,3705.6,2.6986127]
[1760697769914,0.0012,3706.5,3705.5,3.64734413]
[1760697770236,0.0012,3706.5,3705.7,2.698494]
[1760697770993,0.0012,3706.5,3705.5,0.94866534]
[1760697771100,0.0012,3706.5,3705.5,1.728]
[1760697771302,0.0012,3706.5,3705.4,0.0967]
[1760697771501,0.6336,3706.1,3704.4,0.4443]
[1760697771836,0.6336,3706.1,3704.3,0.001]
[1760697771837,0.6336,3705.9,3704.3,0.001]
[1760697772149,2.3616,3705.6,3704.3,0.001]
[1760697772351,0.6871,3705.8,3704.3,0.001]
[1760697772501,0.6336,3705.7,3704.6,2.69932747]
[1760697772814,0.6336,3705.7,3704.3,0.001]
[1760697772815,0.42341072,3705.7,3704.3,0.001]
[1760697773011,0.42341072,3705.7,3704.5,1.728]
[1760697773229,0.87851072,3705.7,3704.3,2.70054161]
[1760697773432,0.87851072,3705.7,3704.3,0.001]
[1760697773749,0.87851072,3705.7,3704.7,2.69924611]
[1760697774034,0.42341072,3705.7,3704.3,0.4453]
[1760697774222,0.42341072,3705.7,3704.4,0.50929424]
[1760697774764,0.42341072,3705.7,3704.5,0.4443]
[1760697774936,0.42341072,3705.7,3704.9,2.69912655]
[1760697775235,0.42341072,3705.7,3704.6,2.69933516]
[1760697775448,0.42341072,3705.7,3704.7,2.69927389]
[1760697775614,0.42341072,3705.7,3704.4,0.50929424]
[1760697775950,1.0887,3705.6,3704.3,2.70050531]
[1760697776118,1.0887,3705.6,3704.3,0.001]
[1760697776451,0.6336,3705.3,3704.3,0.001]
[1760697776648,1.05703921,3705.3,3704.3,0.001]
[1760697776852,0.232,3704.4,3704.3,0.001]
[1760697777023,2.69903668,3705.1,3704.3,0.001]
[1760697777024,0.6336,3705.1,3704.3,0.001]
[1760697777338,0.232,3704.9,3704.3,0.001]
[1760697777537,0.15121392,3705.0,3704.3,0.001]
[1760697777919,0.42346635,3704.9,3704.3,0.001]
[1760697778102,0.42346635,3704.9,3704.5,0.001]
[1760697779460,0.4551,3704.8,3704.5,0.001]
[1760697779959,0.82798819,3704.7,3704.5,0.001]
[1760697780252,0.42346635,3704.9,3704.5,0.001]
[1760697780619,0.65546635,3704.9,3704.5,0.001]
[1760697780823,0.4551,3704.8,3704.5,0.001]
[1760697781222,0.42346635,3704.9,3704.5,0.001]
[1760697782368,0.232,3705.3,3704.5,0.001]
[1760697782369,0.4354,3704.8,3704.5,0.001]
[1760697782725,0.4354,3704.7,3704.5,0.001]
[1760697782947,0.74884699,3704.7,3704.5,0.001]
[1760697783149,0.6336,3705.1,3704.5,0.001]
[1760697783389,0.04706341,3705.2,3704.5,0.001]
[1760697783549,0.6336,3705.1,3704.5,0.001]
[1760697783858,1.05706064,3705.1,3704.5,0.001]
[1760697784062,0.61255241,3705.0,3704.5,0.001]
[1760697784446,0.17715241,3705.0,3704.5,0.001]
[1760697784650,0.4354,3704.9,3704.5,0.001]
[1760697785229,3.33294675,3704.6,3704.5,0.001]
[1760697785440,0.6336,3704.6,3704.5,0.001]
[1760697785665,0.37681542,3704.6,3704.5,0.001]
[1760697785842,1.728,3705.5,3704.5,0.001]
[1760697785843,0.42351712,3704.8,3704.5,0.001]
[1760697786860,2.69856448,3705.7,3704.5,0.001]
[1760697787066,0.42344115,3704.8,3704.5,0.001]
[1760697787260,0.232,3705.8,3704.5,0.001]
[1760697787473,0.42344341,3705.1,3704.5,0.001]
[1760697787878,0.4354,3705.5,3704.5,0.001]
[1760697788045,0.232,3705.8,3704.5,0.001]
[1760697788046,0.42343498,3705.2,3704.5,0.001]
[1760697788246,0.42343498,3705.2,3705.1,2.69898248]
[1760697788470,0.42343498,3705.2,3704.7,2.69924069]
[1760697788471,0.2227,3705.7,3704.7,1.728]
[1760697788789,0.2227,3705.7,3704.8,0.45627421]
[1760697788994,0.2227,3705.9,3704.7,0.4378]
[1760697789161,0.2227,3705.9,3704.9,2.69907959]
[1760697789479,0.2227,3705.9,3705.0,2.69903898]
[1760697789673,0.42336914,3706.1,3705.0,2.69900325]
[1760697789982,0.85876914,3706.1,3705.1,0.0967]
[1760697790273,0.85876914,3706.1,3704.5,0.001]
[1760697790274,0.2227,3705.2,3704.5,0.001]
[1760697790456,3.33198326,3706.0,3704.5,0.001]
[1760697790651,0.2227,3705.3,3704.5,0.001]
[1760697790841,0.4354,3705.7,3704.5,0.001]
[1760697790842,0.85879982,3705.7,3704.5,0.001]
[1760697791044,1.0080398,3705.7,3704.5,0.27114872]
[1760697791246,1.0080398,3705.7,3704.6,2.69933954]
[1760697791548,2.69827088,3706.1,3704.5,0.001]
[1760697791549,0.002,3706.6,3706.4,4.42603582]
[1760697791747,0.002,3707.3,3706.8,2.69774468]
[1760697792045,0.002,3707.3,3706.9,10.10748355]
[1760697792272,0.002,3707.3,3706.9,10.51830684]
[1760697792273,0.0012,3707.0,3706.9,10.51830684]
[1760697792473,1e-08,3707.3,3706.9,5.40720464]
[1760697792778,1e-08,3707.3,3707.2,18.5933856]
[1760697792966,1e-08,3707.7,3707.6,7.14020958]
[1760697793169,0.002,3708.1,3708.0,5.05847162]
[1760697793373,0.2227,3710.2,3708.4,5.05818073]
[1760697793580,0.2227,3710.2,3708.4,6.40241926]
[1760697793779,0.2227,3710.2,3708.4,14.01430419]
[1760697794091,0.2227,3710.5,3708.4,13.80099966]
[1760697794273,0.2227,3710.5,3708.4,8.53618666]
[1760697794814,0.4354,3709.7,3708.4,8.91527066]
[1760697794961,0.4354,3709.7,3708.4,8.28167066]
[1760697795161,0.4354,3709.7,3708.4,5.39967066]
[1760697795468,0.2227,3708.9,3708.4,1.728]
[1760697795671,0.6581,3708.9,3707.8,1.942]
[1760697795869,0.4374,3708.5,3707.5,0.214]
[1760697796078,0.4354,3708.4,3707.1,0.214]
[1760697796281,0.4354,3708.4,3707.4,2.69728666]
[1760697796468,0.4354,3708.4,3706.9,2.881]
[1760697796669,0.4354,3708.4,3707.4,2.69729114]
[1760697796866,0.4354,3708.4,3707.0,3.02942012]
[1760697796867,0.002,3708.5,3707.0,0.33188]
[1760697797069,0.002,3708.5,3706.2,0.4378]
[1760697797070,0.6336,3708.3,3706.2,0.4378]
[1760697797315,0.6336,3708.3,3706.5,2.69796303]
[1760697797316,0.4354,3708.2,3706.5,2.69796303]
[1760697797501,2.696857,3708.1,3706.2,2.69817741]
[1760697797717,0.4354,3708.0,3706.4,2.69803582]
[1760697798013,0.4354,3708.0,3706.0,2.69825632]
[1760697798014,3.66827535,3707.9,3706.3,2.69810438]
[1760697798184,0.4354,3707.8,3705.8,0.617]
[1760697798382,0.4354,3707.7,3705.8,0.617]
[1760697798588,0.4354,3707.7,3706.3,2.69805404]
[1760697798891,0.2227,3706.4,3705.6,0.0967]
[1760697799105,0.2227,3706.4,3705.3,0.0967]
[1760697799316,0.2227,3706.4,3705.3,0.42627443]
[1760697799471,0.2227,3706.4,3704.5,1.059]
[1760697799472,0.4354,3706.3,3704.5,1.059]
[1760697799890,0.4354,3706.3,3704.6,0.46230644]
[1760697800083,0.4354,3706.3,3705.7,1.728]
[1760697800306,0.4354,3706.3,3705.2,1.8247]
[1760697800504,0.4354,3706.3,3705.3,2.6987894]
[1760697800810,0.4354,3706.2,3705.0,2.69899766]
[1760697800992,0.4354,3706.2,3705.3,2.69883004]
[1760697801203,0.2227,3706.4,3705.5,2.69868921]
[1760697801421,0.42332786,3706.3,3705.2,2.69889597]
[1760697801639,0.42332786,3706.3,3704.3,0.001]
[1760697801640,0.2358,3705.3,3704.3,0.001]
[1760697801917,0.2358,3705.3,3704.3,0.1354]
[1760697802080,0.2358,3705.3,3704.7,1.728]
[1760697802283,0.2358,3705.3,3704.3,0.1354]
[1760697802520,0.2358,3705.3,3704.7,2.69920559]
[1760697802718,0.2358,3705.3,3704.7,2.69926908]
[1760697802892,0.2358,3705.3,3704.5,2.70034787]
[1760697803080,0.2358,3705.3,3704.5,3.25393438]
[1760697803281,0.2358,3705.3,3704.6,4.42728511]
[1760697803693,0.2358,3705.3,3704.8,2.69917481]
[1760697804111,0.2358,3705.3,3704.7,2.6992571]
[1760697804282,0.2358,3705.3,3704.5,0.55453371]
[1760697804485,0.2358,3705.3,3704.5,0.001]
[1760697804915,0.2358,3705.3,3704.6,1.728]
[1760697805224,0.2358,3705.3,3704.5,0.001]
[1760697805721,0.2358,3705.3,3704.9,2.69906814]
[1760697806092,0.2358,3705.3,3704.9,2.69907656]
[1760697806288,0.2358,3705.3,3704.5,0.001]
[1760697806499,0.42339909,3705.7,3704.9,2.69911519]
[1760697806830,0.2358,3705.6,3704.8,2.69918959]
[1760697807014,0.2358,3705.6,3704.7,2.69921267]
[1760697807191,0.2358,3705.6,3704.6,2.69934675]
[1760697807388,0.2358,3705.6,3704.6,0.74496417]
[1760697807585,0.2358,3705.6,3704.5,0.18744]
[1760697807586,0.4474,3705.5,3704.7,1.728]
[1760697807795,0.2358,3705.6,3704.5,0.001]
[1760697807796,0.4474,3705.4,3704.5,0.001]
[1760697808514,0.42343107,3705.3,3704.5,0.001]
[1760697810256,0.4474,3705.2,3704.5,0.001]
[1760697811119,0.80905989,3705.2,3704.5,0.001]
[1760697811319,0.47049094,3705.3,3704.5,0.001]
[1760697811526,0.47049094,3705.3,3704.5,2.70041585]
[1760697811710,0.47049094,3705.3,3704.5,0.001]
[1760697811918,0.47049094,3705.3,3704.5,2.70041704]
[1760697812227,0.47049094,3705.3,3704.5,0.001]
[1760697812422,0.42343107,3705.3,3704.5,0.56251048]
[1760697813057,0.42343107,3705.3,3704.6,2.69934675]
[1760697813362,0.42343107,3705.3,3704.7,1.728]
[1760697813664,0.42343107,3705.3,3704.5,0.56251048]
[1760697813819,0.42343107,3705.3,3704.7,2.69925602]
[1760697814018,0.4474,3705.2,3704.5,0.001]
[1760697816182,0.4466,3705.2,3704.5,0.001]
[1760697821275,3.14553415,3705.2,3704.5,0.001]
[1760697821582,0.4466,3705.2,3704.5,0.001]
[1760697822873,0.42343107,3705.3,3704.5,0.001]
[1760697823081,0.42343107,3705.3,3704.5,2.70039087]
[1760697823440,0.87083107,3705.3,3704.5,0.001]
[1760697824286,2.6990167,3705.1,3704.5,0.001]
[1760697824453,2.69893423,3705.2,3704.5,0.001]
[1760697824653,0.4474,3705.0,3704.5,0.001]
[1760697825089,0.4474,3704.9,3704.5,0.001]
[1760697825261,0.42347113,3704.9,3704.5,0.001]
[1760697825794,0.4474,3704.8,3704.5,0.001]
[1760697826165,0.42347113,3704.9,3704.5,0.001]
[1760697826479,0.4474,3704.7,3704.5,0.001]
[1760697826786,2.69934675,3704.6,3704.5,0.001]
[1760697827152,2.69934675,3704.6,3704.3,0.001]
[1760697827153,5.06109249,3704.4,3704.3,0.001]
[1760697827482,1.728,3704.4,3704.1,0.001]
[1760697827786,0.4474,3704.3,3704.1,0.001]
[1760697828150,0.4474,3704.2,3704.1,0.001]
[1760697829166,3.14703824,3704.2,3704.1,0.001]
[1760697829487,5.50863824,3704.2,3704.1,0.001]
[1760697830085,2.1754,3704.2,3704.1,0.001]
[1760697830266,4.87503824,3704.2,3704.1,0.001]
[1760697830668,2.1754,3704.2,3704.1,0.001]
[1760697831072,4.87503824,3704.2,3704.1,0.001]
[1760697831483,23.70587659,3704.2,3704.1,0.001]
[1760697831682,23.07227659,3704.2,3704.1,0.001]
[1760697832902,20.37263835,3704.2,3704.1,0.001]
[1760697833108,23.07227659,3704.2,3704.1,0.001]
[1760697834005,5.50863824,3704.2,3704.1,0.001]
[1760697835004,4.87503824,3704.2,3704.1,0.001]
[1760697835509,2.1754,3704.2,3704.1,0.001]
[1760697835704,4.87503824,3704.2,3704.1,0.001]
[1760697835907,2.1754,3704.2,3704.1,0.001]
[1760697836111,23.07227659,3704.2,3704.1,0.001]
[1760697836611,23.70587659,3704.2,3704.1,0.001]
[1760697838887,2.6999298,3703.8,3703.7,0.001]
[1760697839084,5.0615298,3703.8,3703.7,0.001]
[1760697839283,5.4933298,3703.8,3703.7,0.001]
[1760697839511,5.96407373,3703.8,3703.7,0.001]
[1760697839692,5.96327373,3703.8,3703.7,0.001]
[1760697842386,5.53147373,3703.8,3703.7,0.001]
[1760697842587,5.97957373,3703.8,3703.7,0.001]
[1760697843013,5.53147373,3703.8,3703.7,0.001]
[1760697843221,2.19874393,3703.8,3703.7,0.001]
[1760697843733,4.89867373,3703.8,3703.7,0.001]
[1760697844709,5.98037373,3703.8,3703.7,0.001]
[1760697844916,4.89867373,3703.8,3703.7,0.001]
[1760697846086,5.34677373,3703.8,3703.7,0.001]
[1760697847138,2.19874393,3703.8,3703.7,0.001]
[1760697847840,0.47074393,3703.8,3703.7,0.001]
[1760697848141,0.47074393,3703.8,3703.7,0.439]
[1760697848539,0.42366154,3703.8,3703.7,0.439]
[1760697849257,0.10591538,3703.8,3703.7,3.4530248]
[1760697849458,0.2319,3704.8,3703.7,0.3150221]
[1760697849671,4.6598298,3703.8,3703.7,0.001]
[1760697849981,5.2934298,3703.8,3703.7,0.001]
[1760697850114,1.9599,3703.8,3703.7,0.001]
[1760697850315,1.728,3703.8,3703.7,0.001]
[1760697850545,1.728,3704.3,3703.7,0.001]
[1760697850732,18.19723835,3704.0,3703.7,0.001]
[1760697850933,0.2319,3703.8,3703.7,0.001]
[1760697851248,4.6618298,3703.8,3703.7,0.001]
[1760697851548,0.002,3703.8,3703.7,0.001]
[1760697853048,4.8780298,3703.8,3703.7,0.001]
[1760697853769,5.5116298,3703.8,3703.7,0.001]
[1760697854533,3.33382141,3703.4,3703.3,0.001]
[1760697854738,23.25905976,3703.4,3703.3,0.001]
[1760697855158,23.72983343,3703.4,3703.3,0.001]
[1760697855954,2.19877367,3703.4,3703.3,0.001]
[1760697856543,0.47077367,3703.4,3703.3,0.001]
[1760697857922,0.47077367,3703.4,3703.3,0.439]
[1760697858523,1.73,3703.8,3703.3,0.439]
[1760697858524,0.002,3703.8,3703.3,0.439]
[1760697858742,0.42563194,3703.8,3703.4,0.438]
[1760697859149,0.42563194,3703.8,3703.5,0.45987089]
[1760697859332,0.002,3703.8,3703.5,0.438]
[1760697859553,0.002,3703.8,3703.7,2.7000027]
[1760697859751,0.002,3703.8,3703.7,0.58382208]
[1760697859928,0.002,3703.8,3703.7,0.438]
[1760697860257,0.002,3703.8,3703.3,0.001]
[1760697861078,0.4481,3703.7,3703.3,0.001]
[1760697861235,0.42562351,3703.8,3703.3,0.001]
[1760697862562,0.4724,3703.7,3703.3,0.001]
[1760697863055,2.70009027,3703.6,3703.3,0.001]
[1760697863228,0.4724,3703.7,3703.3,0.001]
[1760697863229,3.17242922,3703.7,3703.3,0.001]
[1760697863424,2.70008352,3703.6,3703.3,0.001]
[1760697863657,0.04708024,3703.7,3703.3,0.001]
[1760697864443,0.04708024,3703.7,3703.4,0.4549]
[1760697864643,0.002,3703.8,3703.5,0.4549]
[1760697864824,0.002,3703.8,3703.6,0.4549]
[1760697865042,0.002,3703.8,3703.3,0.001]
[1760697865357,0.002,3703.8,3703.4,0.4549]
[1760697865560,0.002,3703.8,3703.5,0.4549]
[1760697865751,0.002,3703.8,3703.6,0.4549]
[1760697865948,0.002,3703.8,3703.3,0.001]
[1760697868256,0.002,3703.8,3703.4,0.4549]
[1760697868454,0.002,3703.8,3703.3,0.001]
[1760697868455,0.002,3703.8,3703.5,0.4549]